Cogmind - Beta 13 @@@ ROGUE MODE // 2024.07.05 @ 21:59:58 Player: ThatBishHoly Result: Destroyed by as-30873 with Assembled Maul Performance ------------- Evolutions (0) 0 Regions Visited (2) 400 Robots Destroyed (9) 45 Value Destroyed (235) 235 Prototype IDs (0) 0 Alien Tech Used (0) 0 Bonus (0) 0 TOTAL SCORE: 680 Bonus ------- None Cogmind --------- Core Integrity 0/250 Matter 300/300 Energy 100/100 System Corruption 4% Temperature Cool (0) Movement Hovering (60) Location -10/Mines Parts ------- > --- POWER (1) -------- (None) > --- PROPULSION (2) --- Hover Unit > --- UTILITY (2) ------ (None) > --- WEAPON (2) ------- Hammer > --- INVENTORY (5) ---- Hover Unit Hover Unit High-capacity Storage Unit Sensor Array Sensor Array Peak State ------------ > --- POWER ------------ Light Ion Engine > --- PROPULSION ------- Hover Unit Hover Unit > --- UTILITY ---------- Sensor Array > --- WEAPON ----------- Beam Cannon Hammer > --- INVENTORY -------- Hover Unit Hover Unit High-capacity Storage Unit Sensor Array Sensor Array [Rating: 6] Favorites ----------- Power Ion Engine Engine Ion Engine Propulsion Hover Unit Wheel Compact Wheel Hover Unit Hover Unit Utility Sensor Array Device Sensor Array Weapon Beam Cannon Energy Cannon Beam Cannon Ballistic Gun Assault Rifle Impact Weapon Hammer Build | -11 -10 -10 ------- Run | Yrd Mat Min Slots Evolved . | . . . Power . | . . . Propulsion . | . . . Utility . | . . . Weapon . | . . . Parts Attached 10 | 3 7 . Power 2 | 1 1 . Engine 2 | 1 1 . Core . | . . . Reactor . | . . . Propulsion 4 | 2 2 . Treads . | . . . Leg . | . . . Wheel 2 | 2 . . Hover 2 | . 2 . Flight . | . . . Utility 1 | . 1 . Device 1 | . 1 . Storage . | . . . Processor . | . . . Hackware . | . . . Protection . | . . . Artifact . | . . . Weapon 3 | . 3 . Energy Gun . | . . . Energy Cannon 1 | . 1 . Ballistic Gun 1 | . 1 . Ballistic Cannon . | . . . Launcher . | . . . Special Weapon . | . . . Impact Weapon 1 | . 1 . Slashing Weapon . | . . . Piercing Weapon . | . . . Special Melee Weapon . | . . . Unidentified Prototypes . | . . . Parts Lost 7 | . 3 4 Power 2 | . 1 1 Propulsion 3 | . 2 1 Utility 1 | . . 1 Weapon 1 | . . 1 Highest Loss Streak 4 | . 2 4 To Critical Strikes . | . . . Average Slot Usage (%) 59 | . 57 73 Engine 9 | . 8 14 Wheel 13 | . 15 . Hover 9 | . 6 28 Device 4 | . 3 11 Energy Cannon 10 | . 11 5 Ballistic Gun 8 | . 9 . Impact Weapon 3 | . 1 14 Naked Turns . | . . . Heaviest Build 10 | 5 10 9 Greatest Support 26 | 26 26 12 Greatest Overweight (x) 1 | 1 1 . Average Overweight (x) . | . . . Largest Inventory Capacity 5 | 5 5 5 Average Capacity 5 | 5 5 5 Most Carried 5 | 2 5 5 Average Carried 2 | . 2 5 Final Capacity 5 | 5 5 5 Final Carried 5 | 1 5 5 Class Distribution -------------------- 100% | Mutant Dominant Class ---------------- Mutant | -10/Materials Mutant | -10/Mines Resources | -11 -10 -10 ----------- Run | Yrd Mat Min Matter Collected 339 | 164 130 45 Remotely . | . . . Salvage Created 306 | . 256 50 Parts 16 | . 13 3 Haulers Intercepted . | . . . Recyclers Shooed . | . . . Parts Field Recycled . | . . . Retrieved Matter . | . . . Parts Self-Destructed . | . . . Prevented . | . . . Kills | -11 -10 -10 ------- Run | Yrd Mat Min Combat Hostiles Destroyed 8 | . 5 3 Cannons 7 | . 5 2 Classes Destroyed 4 | . 2 2 Watcher 2 | . 2 . Swarmer 2 | . . 2 Grunt 5 | . 5 . Assembled 1 | . . 1 Best Kill Streak 4 | . 4 2 Combat Bots Only 4 | . 4 2 Max Kills in Single Turn 1 | . 1 1 Gunslinging . | . . . Exploded . | . . . Melee . | . . . Uniques/NPCs Destroyed . | . . . Combat | -11 -10 -10 -------- Run | Yrd Mat Min Hostile Shots Fired 63 | . 28 35 Missed 12 | . 3 9 Damage Taken 718 | . 326 392 Core 250 | . 73 177 Absorbed by Shields . | . . . Core Remaining (%) 100 | 100 . . Volleys Fired 29 | . 23 6 Largest 2 | . 2 1 Hottest 80 | . 80 60 Shots Fired 51 | . 45 6 Gun 21 | . 21 . Cannon 30 | . 24 6 Launcher . | . . . Special . | . . . Kinetic 21 | . 21 . Thermal 30 | . 24 6 Explosive . | . . . Electromagnetic . | . . . Robot Hit Streak 6 | . 6 2 Robot Miss Streak 4 | . 4 2 Penetration Max . | . . . Secondary Targets . | . . . Shots Hit Robots 34 | . 27 7 Core Hits 12 | . 10 2 Critical Kills . | . . . Critical Parts Destroyed 1 | . . 1 Critical Strikes 1 | . . 1 Smash 1 | . . 1 Melee Attacks 5 | . . 5 Impact 5 | . . 5 Slashing . | . . . Piercing . | . . . Sneak Attacks . | . . . Combat Hostiles . | . . . Follow-up Attacks . | . . . Damage Inflicted 598 | . 435 163 Guns 132 | . 132 . Cannons 352 | . 299 53 Explosions . | . . . Melee 110 | . . 110 Ramming 4 | . 4 . Kinetic 132 | . 132 . Thermal 352 | . 299 53 Explosive . | . . . Electromagnetic . | . . . Impact 110 | . . 110 Slashing . | . . . Piercing . | . . . Highest Corruption 4 | . 3 4 Average Corruption 3 | . 3 3 Corruption Purged . | . . . Corruption Blocked . | . . . Effects 2 | . 2 . Message Errors 1 | . 1 . Misfires 1 | . 1 . Overload Shots . | . . . Overflow Damage 22 | . . 22 Projectiles . | . . . Explosions . | . . . Melee 22 | . . 22 Knockbacks 1 | . . 1 Impact 1 | . . 1 Kinetic . | . . . Secondary . | . . . Self-Inflicted Damage 2 | . 2 . Shots . | . . . Rammed 1 | . 1 . Targets Rammed 1 | . 1 . Kicked . | . . . Crushed . | . . . Highest Temperature 487 | . 487 144 Average Temperature 212 | . 250 68 Received Heat Transfer 268 | . 228 40 Effects 3 | . 3 . Shutdowns 1 | . 1 . Energy Bleed 1 | . 1 . Short Circuit 1 | . 1 . Siege Activations . | . . . Robots Corrupted . | . . . Combat Hostiles . | . . . Parts Fried . | . . . Impact Corruptions 2 | . . 2 Robots Melted . | . . . Combat Hostiles . | . . . Parts Melted . | . . . Heat Transferred 740 | . 629 111 Parts Sabotaged . | . . . Parts Stolen . | . . . Parts Stripped . | . . . Power Chain Reactions . | . . . Alert | -11 -10 -10 ------- Run | Yrd Mat Min Peak Influence 150 | . 150 113 Initial 58 | . . 58 Average 77 | . 83 101 Maximum Alert Level . | . . . Low Security (%) 100 | 100 100 100 Level 1 . | . . . Level 2 . | . . . Level 3 . | . . . Level 4 . | . . . Level 5 . | . . . High Security . | . . . Max Security . | . . . Squads Dispatched 1 | . 1 . Investigation 1 | . 1 . Extermination . | . . . Reinforcement . | . . . Assault . | . . . Garrison . | . . . Intercept . | . . . Searches Triggered . | . . . Construction Impeded . | . . . Haulers Reinforced . | . . . Active Scanning Responses . | . . . Cargo Convoy Interrupts . | . . . Stealth | -11 -10 -10 --------- Run | Yrd Mat Min Distress Signals 1 | . 1 . Communications Jammed . | . . . Distress Signals . | . . . Times Spotted 28 | . 11 17 Peak Tracking Total 15 | . 5 15 Tactical Retreats 2 | . 1 1 Traps | -11 -10 -10 ------- Run | Yrd Mat Min Traps Triggered . | . . . Indirectly . | . . . Trap Hack Attempts . | . . . Triggered . | . . . Disarmed . | . . . Reprogrammed . | . . . Reused . | . . . Traps Extracted . | . . . Installed . | . . . Triggered . | . . . Machines | -11 -10 -10 ---------- Run | Yrd Mat Min Machines Disabled . | . . . Max in Single Turn . | . . . Machines Repaired . | . . . Machines Dismantled . | . . . Machines Sabotaged . | . . . Overloaded Fab Kills . | . . . Hacking | -11 -10 -10 --------- Run | Yrd Mat Min Machines Accessed 1 | . 1 . Terminals 1 | . 1 . Fabricators . | . . . Repair Stations . | . . . Recycling Units . | . . . Scanalyzers . | . . . Garrison Access . | . . . Total Hacks 4 | . 4 . Successful 1 | . 1 . Failed 3 | . 3 . Catastrophic . | . . . Database Lockouts . | . . . Manual . | . . . Terminals 4 | . 4 . Fabricators . | . . . Repair Stations . | . . . Recycling Units . | . . . Scanalyzers . | . . . Garrison Access . | . . . Terminal Hacks 1 | . 1 . Locate Traps 1 | . 1 . Fabricator Hacks . | . . . Repair Station Hacks . | . . . Recycling Unit Hacks . | . . . Scanalyzer . | . . . Garrison Access Hacks . | . . . Unauthorized Hacks . | . . . Terminals . | . . . Fabricators . | . . . Repair Stations . | . . . Recycling Units . | . . . Scanalyzers . | . . . Garrison Access . | . . . Data Cores Recovered . | . . . Used . | . . . Hacking Detections 1 | . 1 . Full Trace Events 1 | . 1 . Feedback Events . | . . . Feedback Blocked . | . . . Robot Schematics Acquired . | . . . Robots Built . | . . . Authchips . | . . . Time . | . . . Total Robot Build Rating . | . . . Part Schematics Acquired . | . . . Parts Built . | . . . Authchips . | . . . Time . | . . . Total Part Build Rating . | . . . Parts Repaired . | . . . Time . | . . . Parts Recycled . | . . . Recycled Matter . | . . . Retrieved Matter . | . . . Retrieved Components . | . . . Parts Scanalyzed . | . . . Part Schematics Acquired . | . . . Parts Damaged . | . . . Bothacking | -11 -10 -10 ------------ Run | Yrd Mat Min Used RIF Installer . | . . . Robots Hacked . | . . . Non-combat . | . . . Combat . | . . . Robot Hacks Applied . | . . . Relay Couplers Released . | . . . Fabnet Peak Effective % . | . . . Robots Rewired . | . . . Allies Hacked . | . . . Hacks Repelled . | . . . Allies | -11 -10 -10 -------- Run | Yrd Mat Min Total Allies . | . . . Largest Group . | . . . Highest-Rated Group . | . . . Highest-Rated Ally . | . . . Total Orders . | . . . Ally Attacks . | . . . Total Damage . | . . . Kills . | . . . Allies Corrupted . | . . . Allies Melted . | . . . Intel | -11 -10 -10 ------- Run | Yrd Mat Min Robot Analysis Total . | . . . Derelict Logs Recovered . | . . . Drone Launches . | . . . Drone Recoveries . | . . . Exploration | -11 -10 -10 ------------- Run | Yrd Mat Min Turns Passed 384 | 37 293 54 Spaces Moved 306 | 36 219 51 Core 71 | 18 53 . Treads . | . . . Legs . | . . . Wheels 104 | 18 86 . Hover 131 | . 80 51 Flight . | . . . Fastest Speed 50 | 50 56 56 Average Speed 76 | 79 80 56 Slowest Speed 100 | 100 100 56 Overloaded Moves . | . . . Propulsion Burnouts . | . . . Robots Hopped . | . . . Cave-ins Triggered . | . . . Exploration Rate (%) 22 | 4 49 14 Regions Visited 2 Branch Regions 1 Pre-discovered Areas . | . . . Known Exits Taken . | . . . Unknown Exits Taken 2 | 1 1 . Scrap Searched . | . . . Spaces Dug . | . . . Terrain Destroyed . | . . . Melee . | . . . Projectile . | . . . AOE . | . . . Terrain Rammed . | . . . Walls Destroyed . | . . . Machines Disabled . | . . . Actions | -11 -10 -10 --------- Run | Yrd Mat Min Total 397 | 44 291 62 Wait 32 | . 32 . Move 304 | 35 218 51 Hop . | . . . Pick Up 14 | 5 9 . Fast Attach 2 | . 2 . Attach 8 | 3 5 . Detach . | . . . Swap . | . . . Drop 2 | 1 1 . Fire 29 | . 23 6 Melee 5 | . . 5 Ram 1 | . 1 . Kick . | . . . Crush . | . . . Escape Stasis . | . . . Rewire . | . . . Trap . | . . . Miscellaneous . | . . . Route ------- -11/Scrapyard -10/Materials (discovered 2 exits: [*Mat] / [*Min]) -10/Mines History --------- Turn | Location | Event 27 | -11/Scrapyard | Discovered new exit (range 13) 38 | -11/Scrapyard | Entered Materials 287 | -10/Materials | Discovered new exit (range 15) 305 | -10/Materials | Discovered new exit (range 8) 329 | -10/Materials | Build established: Mutant 331 | -10/Materials | Entered Mines 332 | -10/Mines | Assembled infested the area 375 | -10/Mines | Core integrity fell below 50% 385 | -10/Mines | Core integrity fell below 20% 385 | -10/Mines | Destroyed by as-30873 with Assembled Maul Last Messages --------------- GOAL=ESCAPE Something is scanning the area. 00332_ ALERT: Infestation in the mines, dispatching Demolisher response squad. 00333_ S-10 Pest destroyed. 00344_ Acquired 19 matter. 00345_ Acquired 12 matter. 00346_ Acquired 14 matter. 00356_ Beam Cannon destroyed. 00375_ as-17329 suffers critical hit (Smash). 00375_ Destroyed Asb. F-torch. 00375_ Destroyed Asb. Hover Unit. 00375_ as-17329 system corrupted by crushing effect. 00375_ as-17329 knocked back. 00376_ as-17329 system terminally corrupted. 00379_ Sensor Array destroyed. 00379_ System corrupted by crushing effect (+1). 00381_ Lgt. Ion Engine destroyed. 00385_ Hover Unit destroyed. Map ----- +----------------------------------------------------+ | ????????????????????????????????????????? | | ????????????????????????????????????????? | | ?????????????????????????????###????????? | | ???????????????????????????## ##???????? | | ??????????????????????????## #???????? | | ?????????????????????????## ##??????? | | ????????????????????????## ##?????? | | ????????????????????????# #?????? | | ?????????????????????????# #?????? | | ??????????????????????????# ##????? | | ????????????????######???## ##???? | | ???????????????## == ##?## #???? | | ???????????????#= = ### #???? | | ???????????????# [ ## ##???? | | ???????????????##= ## ##????? | | ????????????????## ## #?????? | | ?????????????????# ### ##????? | | ?????????????????# ### #????? | | ?????????????????# ### ###?# #???? | | ???????????????### #?####??? #???? | | ???????????????# a #???????? #???? | | ???????????????#a###??????? ##???? | | ???????????????#a#????????? ##????? | | ???????????????#a#???????? #?????? | | ???????????????#a#???????? ## #?????? | | ???????????????#@#???????# #?? ?????? | | ???????????????#a#??????? ???# ????? | | ??????????????? %a??????? ????# ????? | | ??????????????? a?????? ?????# ???? | | ??????????????### ????? ?????? ??? | | ????????????????? ???? #??????? ???? | | ????????????????? ?????##?????????????? | | ????????????????? ????????????????????? | | ?????????????????# ???????????????????? | | ?????????????????? ???????????????????? | | ?????????????????? ??????????????????? | | ??????????????????# #??????????????????? | | ???????????????????###??????????????????? | | ????????????????????????????????????????? | | ????????????????????????????????????????? | | ????????????????????????????????????????? | | ????????????????????????????????????????? | | ????????????????????????????????????????? | | ????????????????????????????????????????? | | ????????????????????????????????????????? | | ????????????????????????????????????????? | | ????????????????????????????????????????? | | ????????????????????????????????????????? | | ????????????????????????????????????????? | | ????????????????????????????????????????? | +----------------------------------------------------+ Best States ------------- Heat Dissipation 25 Energy Generation 10 Energy Capacity 250 Matter Stores 300 Matter Capacity 300 Sight Range 16 Robot Scan Range 14 Terrain Scan Density 10 Evasion (%) 53 Item Schematics ----------------- None Robot Schematics ------------------ None Fabricated ------------ Nothing Alien Tech Used ----------------- None Achievements -------------- None Challenges ------------ None Game ------ Seed StructuralRecoilFragment Manual? 0 Play Time 00:07:52 Cumulative 24.3 hours Start 2024.07.05 @ 21:53:18 End 2024.07.05 @ 21:59:58 Sessions 1 Manual Loads 0 Difficulty Rogue Special Mode None Game No. 73 Rogue 73 Adventurer 0 Explorer 0 Win Type - Total 0 Types 0/0/0/0/0/0/0/0/0 Lore% 16 Gallery% 31 Achievement% 23 Wizard Run 0 Options --------- Layout 1 ASCII 0 Keyboard 0 Movement Mouse Keybinds 0 Fullscreen 1 Font 48/Smallcaps Map View 25x17 Zoom Use 99% Tactical HUD 1 Map Filters NONE Filters NONE Steam 1 RUN: ad1dc0a5-6ad0-40f8-be68-4759d65c5553